fUSD/lending_fUSD_20250120
["ID","MTS","AMOUNT","RATE_DAILY","PERIOD"]
[349668666,1737364233611,-289.26071582,0.00019765,2]
[349668667,1737364233624,-239.95719577,0.00019765,2]
[349668668,1737364233639,-268.28562699,0.00019765,2]
[349668669,1737364233651,-118.71228597,0.00019765,2]
[349668670,1737364233669,-433.36771403,0.00019765,2]
[349668671,1737364233684,-48.65232597,0.00019765,2]
[349668672,1737364233721,-451.34767403,0.00019765,2]
[349668673,1737364233735,-504.78802334,0.00019765,2]
[349668674,1737364233749,-500.0,0.00019765,2]
[349668675,1737364233763,-632.46,0.00019765,2]
[349668676,1737364233777,-500.0,0.00019765,2]
[349668677,1737364233791,-540.00429263,0.00019765,2]
[349668678,1737364233825,-234.39570737,0.00019765,2]
[349668679,1737364233839,-500.0,0.00019765,2]
[349668680,1737364233853,-711.41,0.00019765,2]
[349668681,1737364233867,-500.0,0.00019765,2]
[349668682,1737364233881,-590.72,0.00019765,2]
[349668683,1737364233893,-500.0,0.00019765,2]
[349668684,1737364233904,-362.60456897,0.00019765,2]
[349668685,1737364233930,-137.39543103,0.00019765,2]
[349668686,1737364233942,-311.47747204,0.00019765,2]
[349668698,1737364237824,-1002.61395988,0.00019665,2]
[349668705,1737364237884,-865.85834012,0.00019665,2]
[349668706,1737364237896,-197.43752639,0.00019765,2]
[349668707,1737364237907,-500.0,0.00019765,2]
[349668708,1737364237920,-500.0,0.00019765,2]
[349668709,1737364237933,-580.97,0.00019765,2]
[349668710,1737364237945,-500.0,0.00019765,2]
[349668711,1737364237956,-122.73413349,0.00019765,2]
[349668712,1737364237970,-377.26586651,0.00019765,2]
[349668713,1737364237982,-500.0,0.00019765,2]
[349668714,1737364237994,-1051.01,0.00019765,2]
[349668715,1737364238006,-504.44544008,0.00019765,2]
[349668716,1737364238018,-500.0,0.00019765,2]
[349668717,1737364238030,-500.0,0.00019765,2]
[349668718,1737364238042,-995.63,0.00019765,2]
[349668719,1737364238054,-500.0,0.00019765,2]
[349668720,1737364238066,-500.0,0.00019765,2]
[349668721,1737364238078,-500.0,0.00019765,2]
[349668722,1737364238091,-886.84869357,0.00019765,2]
[349668723,1737364238254,-1808.66748912,0.00016833,2]
[349668724,1737364238266,-898.13130643,0.00019765,2]
[349668725,1737364238279,-500.0,0.00019765,2]
[349668726,1737364238291,-184.30120445,0.00019765,2]
[349669200,1737364250546,-797.72879555,0.00019765,2]
[349669202,1737364250556,-500.0,0.00019765,2]
[349669204,1737364250566,-878.13,0.00019765,2]
[349669206,1737364250575,-4.33278745,0.00019765,2]
[349669231,1737364250810,-495.66721255,0.00019765,2]
[349669233,1737364250819,-500.0,0.00019765,2]
[349669235,1737364250828,-500.0,0.00019765,2]
[349669237,1737364250837,-645.04851655,0.00019765,2]
[349669239,1737364250847,-230.95788433,0.00019765,2]
[349669242,1737364250863,-268.93594363,0.00019765,2]
[349669244,1737364250873,-500.0,0.00019765,2]
[349669246,1737364250885,-501.48486827,0.00019765,2]
[349669248,1737364250894,-1712.27,0.00019765,2]
[349669250,1737364250903,-230.14825775,0.00019765,2]
[349669252,1737364250912,-500.0,0.00019765,2]
[349669254,1737364250922,-500.0,0.00019765,2]
[349669256,1737364250931,-500.0,0.00019765,2]
[349669257,1737364250943,-500.0,0.00019765,2]
[349669258,1737364250952,-612.21649615,0.00019765,2]
[349669259,1737364250961,-500.0,0.00019765,2]
[349669260,1737364250971,-502.79418284,0.00019765,2]
[349669261,1737364250980,-500.0,0.00019765,2]
[349669262,1737364250990,-500.0,0.00019765,2]
[349669263,1737364250999,-624.28,0.00019765,2]
[349669264,1737364251009,-500.0,0.00019765,2]
[349669265,1737364251018,-507.13482335,0.00019765,2]
[349669266,1737364251028,-500.0,0.00019765,2]
[349669267,1737364251037,-500.0,0.00019765,2]
[349669268,1737364251046,-500.0,0.00019765,2]
[349669270,1737364251055,-1281.16,0.00019765,2]
[349669272,1737364251064,-705.55,0.00019765,2]
[349669274,1737364251073,-500.0,0.00019765,2]
[349669276,1737364251082,-602.33,0.00019765,2]
[349669278,1737364251091,-500.0,0.00019765,2]
[349669279,1737364251100,-500.0,0.00019765,2]
[349669281,1737364251109,-1122.57,0.00019765,2]
[349669283,1737364251118,-500.0,0.00019765,2]
[349669285,1737364251128,-500.0,0.00019765,2]
[349669287,1737364251137,-500.0,0.00019765,2]
[349669289,1737364251146,-574.09,0.00019765,2]
[349669291,1737364251155,-500.0,0.00019765,2]
[349669293,1737364251164,-500.0,0.00019765,2]
[349669295,1737364251173,-500.0,0.00019765,2]
[349669297,1737364251185,-500.0,0.00019765,2]
[349669299,1737364251194,-2931.38,0.00019765,2]
[349669301,1737364251203,-951.51,0.00019765,2]
[349669303,1737364251212,-500.0,0.00019765,2]
[349669305,1737364251222,-500.0,0.00019765,2]
[349669307,1737364251231,-500.0,0.00019765,2]
[349669309,1737364251240,-1084.98,0.00019765,2]
[349669311,1737364251249,-890.26,0.00019765,2]
[349669313,1737364251258,-500.0,0.00019765,2]
[349669315,1737364251267,-559.75,0.00019765,2]
[349669317,1737364251275,-659.02,0.00019765,2]
[349669319,1737364251285,-500.0,0.00019765,2]
[349669321,1737364251295,-1259.19,0.00019765,2]
[349669323,1737364251303,-500.0,0.00019765,2]
[349669325,1737364251313,-500.0,0.00019765,2]
[349669326,1737364251321,-500.0,0.00019765,2]
[349669328,1737364251330,-986.13,0.00019765,2]
[349669330,1737364251339,-500.0,0.00019765,2]
[349669332,1737364251348,-500.0,0.00019765,2]
[349669334,1737364251358,-500.0,0.00019765,2]
[349669336,1737364251367,-500.0,0.00019765,2]
[349669338,1737364251376,-500.0,0.00019765,2]
[349669340,1737364251387,-423.06456235,0.00019765,2]
[349669342,1737364251395,-500.0,0.00019765,2]
[349669344,1737364251404,-910.96,0.00019765,2]
[349669346,1737364251414,-1839.07,0.00019765,2]
[349669348,1737364251423,-500.0,0.00019765,2]
[349669350,1737364251435,-689.88,0.00019765,2]
[349669352,1737364251445,-500.0,0.00019765,2]
[349669354,1737364251454,-1195.66,0.00019765,2]
[349669356,1737364251463,-1885.54,0.00019765,2]
[349669358,1737364251472,-973.62,0.00019765,2]
[349669360,1737364251482,-500.0,0.00019765,2]
[349669362,1737364251491,-500.0,0.00019765,2]
[349669363,1737364251500,-500.0,0.00019765,2]
[349669364,1737364251509,-1475.67,0.00019765,2]
[349669365,1737364251518,-4719.83,0.00019765,2]
[349669366,1737364251527,-327.20602335,0.00019765,2]
[349669367,1737364251536,-500.0,0.00019765,2]
[349669368,1737364251545,-500.0,0.00019765,2]
[349669370,1737364251554,-500.0,0.00019765,2]
[349669371,1737364251563,-813.33,0.00019765,2]
[349669373,1737364251573,-1631.88,0.00019765,2]
[349669375,1737364251583,-500.0,0.00019765,2]
[349669376,1737364251592,-732.92,0.00019765,2]
[349669377,1737364251601,-500.0,0.00019765,2]
[349669378,1737364251611,-2020.24,0.00019765,2]
[349669379,1737364251620,-500.0,0.00019765,2]
[349669380,1737364251629,-500.0,0.00019765,2]
[349669381,1737364251639,-500.0,0.00019765,2]
[349669382,1737364251649,-500.0,0.00019765,2]
[349669383,1737364251659,-500.0,0.00019765,2]
[349669384,1737364251668,-1059.82,0.00019765,2]
[349669385,1737364251677,-1270.22,0.00019765,2]
[349669386,1737364251689,-508.85,0.00019765,2]
[349669387,1737364251699,-500.0,0.00019765,2]
[349669388,1737364251707,-500.0,0.00019765,2]
[349669389,1737364251717,-500.0,0.00019765,2]
[349669390,1737364251727,-500.0,0.00019765,2]
[349669391,1737364251736,-500.0,0.00019765,2]
[349669392,1737364251746,-2587.04,0.00019765,2]
[349669393,1737364251755,-500.0,0.00019765,2]
[349669394,1737364251766,-500.0,0.00019765,2]
[349669395,1737364251775,-500.0,0.00019765,2]
[349669396,1737364251784,-170.04576041,0.00019765,2]
[349669397,1737364251794,-611.44,0.00019765,2]
[349669398,1737364251804,-500.0,0.00019765,2]
[349669399,1737364251814,-2123.33,0.00019765,2]
[349669400,1737364251823,-500.0,0.00019765,2]
[349669401,1737364251834,-500.0,0.00019765,2]
[349669402,1737364251844,-1746.92,0.00019765,2]
[349669403,1737364251855,-500.0,0.00019765,2]
[349669404,1737364251866,-500.0,0.00019765,2]
[349669405,1737364251880,-500.0,0.00019765,2]
[349669406,1737364251891,-1409.61,0.00019765,2]
[349669407,1737364251903,-500.0,0.00019765,2]
[349669408,1737364251914,-585.35,0.00019765,2]
[349669409,1737364251927,-500.0,0.00019765,2]
[349669410,1737364251943,-500.0,0.00019765,2]
[349669411,1737364251954,-501.71,0.00019766,2]
[349669412,1737364251968,-761.86,0.00019766,2]
[349669413,1737364251979,-500.0,0.00019766,2]
[349669414,1737364251988,-901.6,0.00019766,2]
[349669415,1737364251998,-500.0,0.00019766,2]
[349669416,1737364252008,-500.0,0.00019766,2]
[349669417,1737364252018,-500.0,0.00019766,2]
[349669418,1737364252027,-500.0,0.00019766,2]
[349669419,1737364252037,-562.16,0.00019766,2]
[349669420,1737364252046,-504.89,0.00019766,2]
[349669421,1737364252057,-611.03,0.00019766,2]
[349669422,1737364252066,-643.14,0.00019766,2]
[349669423,1737364252075,-500.0,0.00019766,2]
[349669424,1737364252084,-500.0,0.00019766,2]
[349669425,1737364252093,-500.0,0.00019766,2]
[349669426,1737364252103,-500.0,0.00019766,2]
[349669427,1737364252112,-500.0,0.00019766,2]
[349669428,1737364252121,-598.09,0.00019766,2]
[349669429,1737364252130,-500.0,0.00019766,2]
[349669430,1737364252139,-500.0,0.00019766,2]
[349669431,1737364252149,-500.0,0.00019766,2]
[349669432,1737364252160,-547.78,0.00019766,2]
[349669433,1737364252169,-500.0,0.00019766,2]
[349669434,1737364252178,-500.0,0.00019766,2]
[349669435,1737364252194,-500.0,0.00019766,2]
[349669436,1737364252203,-662.86,0.00019766,2]
[349669437,1737364252213,-500.0,0.00019766,2]
[349669438,1737364252222,-500.0,0.00019766,2]
[349669439,1737364252232,-500.0,0.00019766,2]
[349669440,1737364252242,-500.0,0.00019766,2]
[349669441,1737364252251,-296.42666524,0.00019766,2]
[349669442,1737364252260,-500.7,0.00019766,2]
[349669443,1737364252270,-500.0,0.00019766,2]
[349669444,1737364252279,-698.25,0.00019766,2]
[349669445,1737364252288,-500.0,0.00019766,2]
[349669446,1737364252297,-866.68,0.00019766,2]
[349669447,1737364252306,-516.37,0.00019766,2]
[349669448,1737364252315,-500.0,0.00019766,2]
[349669449,1737364252324,-500.0,0.00019766,2]
[349669450,1737364252333,-500.0,0.00019766,2]
[349669451,1737364252342,-618.93,0.00019766,2]
[349669452,1737364252352,-500.0,0.00019766,2]
[349669453,1737364252361,-500.0,0.00019766,2]
[349669454,1737364252526,-500.0,0.00019766,2]
[349669455,1737364252535,-500.0,0.00019766,2]
[349669456,1737364252545,-108094.52891303,0.00019766,2]
[349669457,1737364252558,-636.43349484,0.00019766,2]
[349669458,1737364252567,-500.0,0.00019767,2]
[349669459,1737364252577,-489.34553497,0.00019767,2]
[349669460,1737364252587,-3.36946989,0.00019767,2]
[349669461,1737364252599,-564.55392954,0.00019767,2]
[349669462,1737364252608,-502.23,0.00019767,2]
[349669463,1737364252617,-500.0,0.00019767,2]
[349669464,1737364252627,-500.0,0.00019767,2]
[349669465,1737364252636,-500.0,0.00019767,2]
[349669466,1737364252646,-500.0,0.00019767,2]
[349669467,1737364252655,-500.0,0.00019767,2]
[349669468,1737364252665,-500.0,0.00019767,2]
[349669469,1737364252675,-301.78862807,0.00019767,2]
[349669470,1737364252689,-500.0,0.00019767,2]
[349669471,1737364252698,-500.0,0.00019767,2]
[349669472,1737364252708,-570.98,0.00019767,2]
[349669473,1737364252717,-500.0,0.00019767,2]
[349669474,1737364252727,-500.0,0.00019767,2]
[349669475,1737364252737,-500.0,0.00019767,2]
[349669476,1737364252746,-502.53195064,0.00019768,2]
[349669477,1737364252756,-500.0,0.00019768,2]
[349669478,1737364252765,-506.10432699,0.00019768,2]
[349669479,1737364252775,-267.88777229,0.00019792,2]
[349669480,1737364252784,-150.87349606,0.00019891,2]
[349669481,1737364252794,-202.49670509,0.000199,2]
[349669482,1737364252803,-625.18,0.00019931,30]
[349669483,1737364252812,-1526.10730051,0.0001994,2]
[349669484,1737364252823,-275.97040027,0.0001994,2]
[349669485,1737364252843,-89.84899922,0.0001994,2]
[349669486,1737364252852,-202.49670505,0.00019995,2]
[349669487,1737364252862,-1300.50714215,0.0002,3]
[349669488,1737364252871,-5007.71075327,0.0002,2]
[349669489,1737364252887,-2178.4,0.0002,2]
[349669490,1737364252898,-1090.2,0.0002,2]
[349669491,1737364252909,-11725.9234718,0.0002,2]
[349669492,1737364252919,-267.88777222,0.00020026,2]
[349669493,1737364252928,-500.0,0.00020039,2]
[349669494,1737364252943,-500.0,0.00020039,2]
[349669495,1737364252952,-500.0,0.00020039,2]
[349669496,1737364252962,-500.0,0.00020039,2]
[349669497,1737364252973,-500.0,0.00020039,2]
[349669498,1737364252982,-500.0,0.00020039,2]
[349669499,1737364252991,-500.0,0.00020039,2]
[349669500,1737364253001,-500.0,0.00020039,2]
[349669501,1737364253010,-500.0,0.00020039,2]
[349669502,1737364253019,-322.50070724,0.00020039,2]
[349669503,1737364253028,-171.00500106,0.00020039,2]
[349669504,1737364253226,-325.43193697,0.00020039,2]
[349669505,1737364253987,-217.42,0.00019171,2]
[349669506,1737364253996,-500.0,0.00019765,2]
[349669507,1737364254007,-220.38732711,0.00019765,2]
[349669508,1737364254018,-279.61267289,0.00019765,2]
[349669509,1737364254027,-261.86812711,0.00019765,2]
[349669510,1737364254043,-238.13187289,0.00019765,2]
[349669511,1737364254053,-162.36805713,0.00019765,2]
[349669512,1737364254067,-325.4,0.00019765,2]
[349669513,1737364254091,-108.59194287,0.00019765,2]
[349669514,1737364254100,-21.19306197,0.00020039,2]
[349669515,1737364254109,-500.0,0.00020039,2]
[349669516,1737364254118,-500.0,0.00020039,2]
[349669517,1737364254127,-238.76499616,0.00020039,2]
[349669518,1737364254138,-261.23500384,0.00020039,2]
[349669519,1737364254147,-531.07,0.00020039,2]
[349669520,1737364254156,-500.0,0.00020039,2]
[349669521,1737364254166,-500.0,0.00020039,2]
[349669522,1737364254175,-522.22,0.00020039,2]
[349669523,1737364254188,-500.0,0.00020039,2]
[349669524,1737364254197,-500.0,0.00020039,2]
[349669525,1737364254207,-500.0,0.00020039,2]
[349669526,1737364254216,-631.72,0.00020039,2]
[349669527,1737364254225,-500.0,0.00020039,2]
[349669528,1737364254235,-497.25499616,0.00020039,2]
[349669529,1737364254251,-2.74500384,0.00020039,2]
[349669530,1737364254260,-511.95,0.00020039,2]
[349669531,1737364254269,-500.0,0.00020039,2]
[349669532,1737364254279,-377.413323,0.00020039,2]
[349669533,1737364254288,-500.0,0.00020039,2]
[349669534,1737364254298,-208.19652722,0.00020039,2]
[349669535,1737364254314,-500.0,0.00019765,2]
[349669536,1737364254323,-291.80347278,0.00020039,2]
[349669537,1737364254333,-625.8,0.00020039,2]
[349669538,1737364254342,-638.93,0.00020039,2]
[349669539,1737364254352,-743.92,0.00020039,2]
[349669540,1737364254361,-500.0,0.00020039,2]
[349669541,1737364254371,-500.0,0.00020039,2]
[349669542,1737364254380,-542.72,0.00020039,2]
[349669543,1737364254389,-624.39920488,0.00020039,2]
[349669544,1737364254399,-835.528084,0.00020039,2]
[349669545,1737364254408,-500.0,0.00020039,2]
[349669546,1737364254417,-500.0,0.00020039,2]
[349669547,1737364254426,-692.27,0.00020039,2]
[349669548,1737364254437,-500.0,0.00020039,2]
[349669549,1737364254446,-500.0,0.00020039,2]
[349669550,1737364254455,-537.05840932,0.00020039,2]
[349669551,1737364254465,-869.44,0.00020039,2]
[349669552,1737364254474,-500.0,0.00020039,2]
[349669553,1737364254483,-500.0,0.00020039,2]
[349669554,1737364254493,-500.0,0.00020039,2]
[349669555,1737364254502,-500.0,0.00020039,2]
[349669556,1737364254511,-733.09,0.00020039,2]
[349669557,1737364254524,-500.0,0.00020039,2]
[349669558,1737364254536,-677.5,0.00020039,2]
[349669559,1737364254546,-634.96,0.00020039,2]
[349669560,1737364254567,-500.0,0.00020039,2]
[349669561,1737364254577,-688.82,0.00020039,2]
[349669562,1737364254586,-500.0,0.00020039,2]
[349669563,1737364254595,-697.04,0.00020039,2]
[349669564,1737364254606,-500.0,0.00020039,2]
[349669565,1737364254615,-712.21,0.00020039,2]
[349669566,1737364254626,-500.0,0.00020039,2]
[349669567,1737364254636,-696.97,0.00020039,2]
[349669568,1737364254646,-538.88,0.00020039,2]
[349669569,1737364254656,-500.0,0.00020039,2]
[349669570,1737364254665,-500.0,0.00020039,2]
[349669571,1737364254675,-500.0,0.00020039,2]
[349669572,1737364254689,-500.0,0.00020039,2]
[349669573,1737364254698,-500.0,0.00020039,2]
[349669574,1737364254707,-500.0,0.00020039,2]
[349669575,1737364254717,-500.0,0.00020039,2]
[349669576,1737364254726,-674.93,0.00020039,2]
[349669577,1737364254735,-1012.88,0.00020039,2]
[349669578,1737364254744,-500.0,0.00020039,2]
[349669579,1737364254753,-500.0,0.00020039,2]
[349669580,1737364254762,-500.0,0.00020039,2]
[349669581,1737364254771,-500.0,0.00020039,2]
[349669582,1737364254780,-1044.14,0.00020039,2]
[349669583,1737364254790,-500.0,0.00020039,2]
[349669584,1737364254798,-500.0,0.00020039,2]
[349669585,1737364254808,-860.57,0.00020039,2]
[349669586,1737364254817,-500.0,0.00020039,2]
[349669587,1737364254826,-1213.14,0.00020039,2]
[349669588,1737364254835,-1000.0,0.00020039,2]
[349669589,1737364254844,-500.0,0.00020039,2]
[349669590,1737364254853,-500.0,0.00020039,2]
[349669591,1737364254863,-775.55,0.00020039,2]
[349669592,1737364254872,-552.08,0.00020039,2]
[349669593,1737364254884,-500.0,0.00020039,2]
[349669594,1737364254893,-500.0,0.00020039,2]
[349669595,1737364254902,-500.0,0.00020039,2]
[349669596,1737364254911,-632.46,0.00020039,2]
[349669597,1737364254920,-500.0,0.00020039,2]
[349669598,1737364254929,-774.4,0.00020039,2]
[349669599,1737364254941,-711.41,0.00020039,2]
[349669600,1737364254950,-1899.82,0.00020039,2]
[349669601,1737364254960,-590.72,0.00020039,2]
[349669602,1737364255078,-500.0,0.00020039,2]
[349669603,1737364255087,-509.012426,0.00020039,2]
[349669604,1737364255096,-265.26626269,0.00020039,2]
[349669605,1737364255105,-580.97,0.00020039,2]
[349669606,1737364255114,-500.0,0.00020039,2]
[349669607,1737364255123,-961.44,0.00020039,2]
[349669608,1737364255131,-1051.01,0.00020039,2]
[349669609,1737364255140,-995.63,0.00020039,2]
[349669610,1737364255149,-500.0,0.00020039,2]
[349669611,1737364255158,-1784.98,0.00020039,2]
[349669612,1737364255167,-982.03,0.00020039,2]
[349669613,1737364255176,-500.0,0.00020039,2]
[349669614,1737364255185,-878.13,0.00020039,2]
[349669615,1737364255194,-500.0,0.00020039,2]
[349669616,1737364255203,-1712.27,0.00020039,2]
[349669617,1737364255211,-500.0,0.00020039,2]
[349669618,1737364255220,-500.0,0.00020039,2]
[349669619,1737364255229,-500.0,0.00020039,2]
[349669620,1737364255238,-624.28,0.00020039,2]
[349669621,1737364255247,-1281.16,0.00020039,2]
[349669622,1737364255256,-705.55,0.00020039,2]
[349669623,1737364255265,-500.0,0.00020039,2]
[349669624,1737364255274,-602.33,0.00020039,2]
[349669625,1737364255283,-1122.57,0.00020039,2]
[349669626,1737364255292,-500.0,0.00020039,2]
[349669627,1737364255301,-500.0,0.00020039,2]
[349669628,1737364255310,-574.09,0.00020039,2]
[349669629,1737364255319,-173.01825532,0.00020039,2]
[349669630,1737364255327,-500.0,0.00020039,2]
[349669631,1737364255336,-2931.38,0.00020039,2]
[349669632,1737364255345,-951.51,0.00020039,2]
[349669633,1737364255354,-500.0,0.00020039,2]
[349669634,1737364255362,-500.0,0.00020039,2]
[349669635,1737364255371,-500.0,0.00020039,2]
[349669636,1737364255380,-1084.98,0.00020039,2]
[349669637,1737364255388,-890.26,0.00020039,2]
[349669638,1737364255398,-559.75,0.00020039,2]
[349669639,1737364255407,-659.02,0.00020039,2]
[349669640,1737364255416,-1259.19,0.00020039,2]
[349669641,1737364255425,-500.0,0.00020039,2]
[349669642,1737364255434,-986.13,0.00020039,2]
[349669643,1737364255443,-500.0,0.00020039,2]
[349669644,1737364255452,-500.0,0.00020039,2]
[349669645,1737364255462,-500.0,0.00020039,2]
[349669646,1737364255471,-500.0,0.00020039,2]
[349669647,1737364255479,-500.0,0.00020039,2]
[349669648,1737364255489,-910.96,0.00020039,2]
[349669649,1737364255498,-1839.07,0.00020039,2]
[349669650,1737364255507,-500.0,0.00020039,2]
[349669651,1737364255517,-500.0,0.00020039,2]
[349669652,1737364255526,-689.88,0.00020039,2]
[349669653,1737364255535,-1195.66,0.00020039,2]
[349669654,1737364255545,-1885.54,0.00020039,2]
[349669655,1737364255554,-973.62,0.00020039,2]
[349669656,1737364255564,-500.0,0.00020039,2]
[349669657,1737364255574,-1475.67,0.00020039,2]
[349669658,1737364255584,-4719.83,0.00020039,2]
[349669659,1737364255593,-500.0,0.00020039,2]
[349669660,1737364255602,-500.0,0.00020039,2]
[349669661,1737364255612,-1631.88,0.00020039,2]
[349669662,1737364255621,-813.33,0.00020039,2]
[349669663,1737364255631,-500.0,0.00020039,2]
[349669664,1737364255641,-732.92,0.00020039,2]
[349669665,1737364255651,-500.0,0.00020039,2]
[349669666,1737364255660,-2020.24,0.00020039,2]
[349669667,1737364255669,-500.0,0.00020039,2]
[349669668,1737364255679,-500.0,0.00020039,2]
[349669669,1737364255692,-500.0,0.00020039,2]
[349669670,1737364255702,-500.0,0.00020039,2]
[349669671,1737364255712,-1059.82,0.00020039,2]
[349669672,1737364255722,-1270.22,0.00020039,2]
[349669673,1737364255734,-508.85,0.00020039,2]
[349669674,1737364255743,-500.0,0.00020039,2]
[349669675,1737364255753,-500.0,0.00020039,2]
[349669676,1737364255762,-500.0,0.00020039,2]
[349669677,1737364255772,-2587.04,0.00020039,2]
[349669678,1737364255782,-500.0,0.00020039,2]
[349669679,1737364255791,-500.0,0.00020039,2]
[349669680,1737364255800,-500.0,0.00020039,2]
[349669681,1737364255810,-611.44,0.00020039,2]
[349669682,1737364255819,-500.0,0.00020039,2]
[349669683,1737364255829,-2123.33,0.00020039,2]
[349669684,1737364255838,-500.0,0.00020039,2]
[349669685,1737364255848,-500.0,0.00020039,2]
[349669686,1737364255858,-1746.92,0.00020039,2]
[349669687,1737364255867,-203.44589291,0.00020039,2]
[349669688,1737364255877,-500.0,0.00020039,2]
[349669689,1737364255886,-1409.61,0.00020039,2]
[349669690,1737364255898,-500.0,0.00020039,2]
[349669691,1737364255907,-585.35,0.00020039,2]
[349669692,1737364255919,-500.0,0.00020039,2]
[349669693,1737364255930,-500.0,0.00020039,2]
[349669694,1737364255941,-500.0,0.00020039,2]
[349669695,1737364255951,-500.0,0.00020039,2]
[349669696,1737364255960,-500.0,0.00020039,2]
[349669697,1737364255972,-501.71,0.0002004,2]
[349669698,1737364255981,-500.0,0.0002004,2]
[349669699,1737364255990,-901.6,0.0002004,2]
[349669700,1737364255999,-500.0,0.0002004,2]
[349669701,1737364256008,-500.0,0.0002004,2]
[349669702,1737364256018,-500.0,0.0002004,2]
[349669703,1737364256027,-500.0,0.0002004,2]
[349669704,1737364256036,-562.16,0.0002004,2]
[349669705,1737364256045,-504.89,0.0002004,2]
[349669706,1737364256054,-611.03,0.0002004,2]
[349669707,1737364256063,-643.14,0.0002004,2]
[349669708,1737364256072,-500.0,0.0002004,2]
[349669709,1737364256081,-500.0,0.0002004,2]
[349669710,1737364256090,-500.0,0.0002004,2]
[349669711,1737364256099,-500.0,0.0002004,2]
[349669712,1737364256108,-500.0,0.0002004,2]
[349669713,1737364256118,-598.09,0.0002004,2]
[349669714,1737364256127,-500.0,0.0002004,2]
[349669715,1737364256136,-500.0,0.0002004,2]
[349669716,1737364256145,-500.0,0.0002004,2]
[349669717,1737364256155,-547.78,0.0002004,2]
[349669718,1737364256165,-500.0,0.0002004,2]
[349669719,1737364256174,-500.0,0.0002004,2]
[349669720,1737364256184,-500.0,0.0002004,2]
[349669721,1737364256194,-662.86,0.0002004,2]
[349669722,1737364256203,-500.0,0.0002004,2]
[349669723,1737364256212,-500.0,0.0002004,2]
[349669724,1737364256221,-500.0,0.0002004,2]
[349669725,1737364256231,-500.0,0.0002004,2]
[349669726,1737364256241,-500.7,0.0002004,2]
[349669727,1737364256251,-500.0,0.0002004,2]
[349669728,1737364256262,-698.25,0.0002004,2]
[349669729,1737364256272,-500.0,0.0002004,2]
[349669730,1737364256282,-866.68,0.0002004,2]
[349669731,1737364256292,-516.37,0.0002004,2]
[349669732,1737364256302,-500.0,0.0002004,2]
[349669733,1737364256311,-500.0,0.0002004,2]
[349669734,1737364256320,-618.93,0.0002004,2]
[349669735,1737364256330,-500.0,0.0002004,2]
[349669736,1737364256339,-500.0,0.0002004,2]
[349669737,1737364256348,-500.0,0.00020041,2]
[349669738,1737364256359,-500.0,0.00020041,2]
[349669739,1737364256368,-500.0,0.00020041,2]
[349669740,1737364256377,-500.0,0.00020041,2]
[349669741,1737364256386,-500.0,0.00020041,2]
[349669742,1737364256395,-772.56,0.00020082,2]
[349669743,1737364256405,-202.49670505,0.0002009,2]
[349669744,1737364256414,-169.15636711,0.000201,2]